bitfinex/quotes_SOLUSD_20240624
["timestamp","ask_amount","ask_price","bid_price","bid_amount"]
[1719261148920,39.6934,125.97,125.82,16.6501]
[1719261149232,7.9428,125.9,125.82,16.6501]
[1719261149431,7.9453,125.86,125.82,16.6501]
[1719261149729,9.78234929,125.91,125.77,6.239]
[1719261150045,63.5654,125.93,125.77,6.239]
[1719261150216,19.8601,125.89,125.77,6.239]
[1719261150528,20.0244,125.92,125.77,26.1165]
[1719261150831,7.9415,125.93,125.8,19.8716]
[1719261151039,7.9402,125.95,125.84,7.9463]
[1719261151424,7.9405,125.94,125.84,7.9463]
[1719261151606,7.9404,125.94,125.84,27.8118]
[1719261151815,31.792323,126.0,125.81,51.7109]
[1719261152028,19.8449,125.98,125.81,31.84]
[1719261152243,19.8449,125.98,125.83,19.8669]
[1719261152413,7.9391,125.96,125.86,7.9448]
[1719261152728,7.9397,125.95,125.85,19.8635]
[1719261152935,7.9397,125.95,125.86,0.17]
[1719261153117,7.9397,125.95,125.85,27.8094]
[1719261153318,103.362323,126.0,125.81,51.71]
[1719261153517,39.6926,125.97,125.8,7.949]
[1719261153733,39.6926,125.97,125.76,31.84]
[1719261153734,111.2626,125.97,125.76,39.7911]
[1719261153916,111.2626,125.97,125.75,35.8597]
[1719261153917,19.8555,125.91,125.75,35.8597]
[1719261154120,45.17,125.9,125.75,43.8118]
[1719261154420,45.17,125.9,125.75,15.9796]
[1719261154421,7.9485,125.81,125.75,15.9796]
[1719261154642,19.8627,125.87,125.75,15.9796]
[1719261154939,1.41016133,125.89,125.75,15.9796]
[1719261154940,9.50697303,125.89,125.75,15.9796]
[1719261155249,7.9442,125.88,125.79,7.9494]
[1719261155547,7.9442,125.88,125.78,27.8249]
[1719261155835,7.9434,125.89,125.79,7.9492]
[1719261156029,7.9416,125.92,125.82,7.9477]
[1719261156236,6.6262,125.98,125.81,19.8709]
[1719261156237,7.9404,125.94,125.84,26.2652]
[1719261156439,16.03731794,125.95,125.84,26.2652]
[1719261156628,7.9404,125.94,125.85,7.9456]
[1719261156812,31.792323,126.0,125.85,15.9264]
[1719261157019,19.8469,125.97,125.85,15.9264]
[1719261157236,7.9422,125.91,125.85,15.9264]
[1719261157441,19.8469,125.97,125.85,15.9264]
[1719261157637,7.9421,125.92,125.85,15.9264]
[1719261157842,7.941,125.93,125.85,15.9264]
[1719261158041,7.9396,125.96,125.85,15.9264]
[1719261158336,7.9406,125.94,125.85,15.9264]
[1719261158539,7.941,125.93,125.85,15.9264]
[1719261158741,31.792323,126.0,125.86,6.5622]
[1719261159036,31.84,126.05,125.87,1.83781124]
[1719261159418,31.84,126.05,125.87,2.00781124]
[1719261159639,71.57,126.04,125.87,2.00781124]
[1719261159834,19.8399,126.01,125.87,2.00781124]
[1719261160018,19.8439,125.99,125.88,1.83766524]
[1719261160341,31.84,126.02,125.86,6.5622]
[1719261160542,19.8427,126.0,125.86,6.5622]
[1719261160839,71.57,126.0,125.86,6.5622]
[1719261161024,8.06844821,125.99,125.86,6.5622]
[1719261161432,27.91154821,125.99,125.86,6.5622]
[1719261161633,7.9415,125.92,125.86,6.5622]
[1719261161819,19.8472,125.97,125.86,6.5622]
[1719261162136,7.9391,125.96,125.86,6.5622]
[1719261162314,0.17,125.98,125.86,8.40015726]
[1719261162514,0.17,125.97,125.86,8.40015726]
[1719261162742,7.9414,125.93,125.81,19.8702]
[1719261162962,7.9415,125.92,125.83,7.9467]
[1719261163248,7.9398,125.95,125.85,7.9458]
[1719261163451,7.9408,125.94,125.84,1.83824937]
[1719261163619,0.17,125.95,125.85,1.8381033]
[1719261163821,7.9442,125.88,125.85,1.8381033]
[1719261164037,19.8535,125.93,125.85,1.8381033]
[1719261164420,0.17,125.97,125.8,6.3144]
[1719261164421,19.8481,125.96,125.81,19.8703]
[1719261164722,0.17,125.95,125.82,1.83854157]
[1719261164914,7.9402,125.95,125.85,7.9456]
[1719261165113,67.59724821,125.99,125.83,19.8669]
[1719261165416,19.8669,125.98,125.85,19.8639]
[1719261165617,19.8669,125.98,125.86,7.9453]
[1719261165844,19.8669,125.98,125.85,19.8639]
[1719261165845,8.06844821,125.99,125.87,0.17]
[1719261166018,7.9384,125.97,125.87,8.1141]
[1719261166219,19.8639,125.99,125.87,19.861]
[1719261166449,7.9389,125.97,125.87,27.8056]
[1719261166621,7.9389,125.97,125.88,7.9439]
[1719261167019,39.7063,126.0,125.86,32.18]
[1719261167238,7.941,125.93,125.84,27.8115]
[1719261167444,7.9423,125.91,125.82,33.67854157]
[1719261167752,19.8482,125.96,125.83,19.867]
[1719261168254,7.9429,125.9,125.82,1.83854157]
[1719261168547,0.17,125.95,125.82,1.83854157]
[1719261168548,19.8514,125.94,125.82,1.83854157]
[1719261168725,0.17,125.93,125.82,1.83854157]
[1719261169124,7.9448,125.87,125.82,1.83854157]
[1719261169345,19.8548,125.92,125.82,1.83854157]
[1719261169547,0.17,125.93,125.82,1.83854157]
[1719261169548,19.8578,125.9,125.82,1.83854157]
[1719261169725,7.9442,125.88,125.82,1.83854157]
[1719261170440,20.0232,125.93,125.82,1.83854157]
[1719261170737,7.9446,125.88,125.82,1.83854157]
[1719261170944,7.9445,125.88,125.82,1.83854157]
[1719261171251,20.0232,125.93,125.82,1.83854157]
[1719261171750,7.9435,125.89,125.82,1.83854157]
[1719261171952,0.17,125.93,125.82,1.83854157]
[1719261172124,7.9472,125.83,125.74,6.1649]
[1719261172324,7.9467,125.84,125.74,6.1649]
[1719261172523,7.9457,125.86,125.76,7.9514]
[1719261172744,7.9461,125.85,125.75,1.83956501]
[1719261172946,7.9452,125.87,125.75,21.71936501]
[1719261173118,31.84,125.92,125.75,21.71936501]
[1719261173119,7.946,125.85,125.75,21.71936501]
[1719261173447,7.9455,125.86,125.75,21.71936501]
[1719261173745,7.9441,125.88,125.77,19.8762]
[1719261173938,7.9448,125.87,125.78,8.1203]
[1719261174118,19.8541,125.92,125.76,2.17941874]
[1719261174119,19.8578,125.9,125.76,9.96071874]
[1719261174327,19.8578,125.9,125.77,0.17]
[1719261174531,19.8612,125.88,125.76,1.83941874]
[1719261174738,7.9448,125.87,125.77,7.951]
[1719261174923,7.9454,125.86,125.77,7.951]
[1719261175120,59.5702,125.91,125.78,7.9503]
[1719261175345,0.17,125.9,125.78,7.9503]
[1719261175545,39.7041,125.94,125.78,19.8753]
[1719261175728,7.9421,125.92,125.8,19.8721]
[1719261175939,7.9421,125.92,125.79,0.34]
[1719261175940,19.854,125.92,125.79,0.34]
[1719261176139,63.555,125.97,125.77,31.84]
[1719261176140,7.9472,125.83,125.77,31.84]
[1719261176441,19.8587,125.89,125.76,1.83941874]
[1719261176635,8.10049179,125.91,125.79,31.84]
[1719261176826,8.10049179,125.91,125.82,7.9477]
[1719261177022,43.7239,126.0,125.8,7.9485]
[1719261177229,7.9435,125.89,125.8,7.9489]
[1719261177454,7.9441,125.88,125.77,16.5692]
[1719261177649,7.9434,125.9,125.78,22.05422626]
[1719261177835,7.9435,125.89,125.8,7.9485]
[1719261178036,8.07464916,125.94,125.85,6.0113]
[1719261178360,7.9393,125.96,125.87,7.9446]
[1719261178544,7.9393,125.96,125.86,8.2852]
[1719261178728,7.9384,125.97,125.88,7.9438]
[1719261178926,8.10876969,126.01,125.85,25.8759]
[1719261179244,7.9407,125.94,125.85,25.8759]
[1719261179437,7.9423,125.91,125.85,6.0113]
[1719261179635,7.9418,125.92,125.85,6.0113]
[1719261180173,19.8517,125.94,125.85,6.0113]
[1719261180536,7.9426,125.91,125.85,6.0113]
[1719261180736,39.6917,125.98,125.8,19.872]
[1719261180966,45.17,125.97,125.8,19.872]
[1719261181135,19.8534,125.93,125.8,27.8209]
[1719261181338,19.8477,125.96,125.82,19.8687]
[1719261181538,7.9396,125.96,125.8,31.84]
[1719261181761,7.9414,125.93,125.83,7.9466]
[1719261181944,7.9432,125.9,125.8,27.8209]
[1719261182136,7.9424,125.91,125.81,7.9481]
[1719261182339,7.9424,125.91,125.79,6.2545]
[1719261182340,7.944,125.88,125.79,6.2545]
[1719261182545,7.9435,125.89,125.79,14.204]
[1719261183063,59.5392,125.97,125.79,6.2545]
[1719261183369,7.9402,125.95,125.85,7.9459]
[1719261183545,59.5461,126.01,125.87,7.9446]
[1719261183546,19.8414,126.0,125.87,7.9446]
[1719261184071,7.9409,125.94,125.85,7.9459]
[1719261184371,7.9385,125.97,125.88,7.944]
[1719261184661,39.7044,126.01,125.9,19.8564]
[1719261184662,19.8639,126.01,125.9,19.8564]
[1719261184854,19.8639,126.01,125.89,16.5351]
[1719261184855,7.9382,125.98,125.89,16.5351]
[1719261185058,19.8639,126.01,125.89,16.5351]
[1719261185246,7.9383,125.98,125.89,16.5351]
[1719261185441,7.9353,126.02,125.93,7.9408]
[1719261185647,19.8332,126.06,125.93,7.9408]
[1719261185864,7.9352,126.02,125.92,27.964]
[1719261186165,7.9352,126.02,125.93,0.34]
[1719261186344,19.8332,126.06,125.93,0.34]
[1719261186660,7.9361,126.01,125.91,13.9871]
[1719261186865,7.9378,125.98,125.91,6.0454]
[1719261187169,7.9366,126.0,125.91,6.0454]
[1719261187367,19.8332,126.06,125.92,0.17]
[1719261187550,7.9333,126.05,125.95,7.9391]
[1719261187753,7.9353,126.02,125.93,19.8509]
[1719261188057,7.9348,126.03,125.93,7.9408]
[1719261188261,7.9353,126.02,125.93,7.9403]
[1719261188558,7.9353,126.02,125.92,28.1339]
[1719261188742,7.9353,126.02,125.93,0.17]
[1719261188947,19.8332,126.06,125.93,0.17]
[1719261189144,7.933,126.06,125.94,31.84]
[1719261189374,8.08399853,126.11,125.95,0.34]
[1719261189563,6.0454,126.1,125.95,0.34]
[1719261189740,25.8716,126.1,125.96,7.9384]
[1719261189940,7.9339,126.05,125.97,0.17]
[1719261190472,7.9321,126.07,125.97,7.9378]
[1719261190772,6.0454,126.1,125.98,0.17]
[1719261190953,25.8718,126.1,125.98,0.17]
[1719261191154,25.8718,126.1,125.95,0.17]
[1719261191470,7.935,126.03,125.93,7.9404]
[1719261191642,7.9334,126.05,125.95,7.9391]
[1719261191853,6.0454,126.1,125.93,31.84]
[1719261192147,7.9336,126.05,125.95,7.9394]
[1719261192352,7.9336,126.05,125.95,7.9391]
[1719261192549,6.0454,126.1,125.98,19.8436]
[1719261192753,7.9322,126.07,125.98,19.8436]
[1719261192964,6.0454,126.1,125.97,7.9383]
[1719261193268,6.0454,126.1,125.98,0.34]
[1719261193473,7.9343,126.04,125.94,27.7902]
[1719261193676,25.872,126.1,125.94,27.7902]
[1719261193677,7.9346,126.03,125.94,27.7902]
[1719261193973,19.8362,126.04,125.89,16.5351]
[1719261194173,61.7454,126.1,125.89,16.5351]
[1719261194174,7.9378,125.98,125.89,16.5351]
[1719261194365,53.7076,126.1,125.9,31.84]
[1719261194366,6.0454,126.1,125.9,31.84]
[1719261194679,6.0454,126.1,126.01,7.9353]
[1719261194860,7.9303,126.1,126.01,7.9353]
[1719261195051,7.9303,126.1,125.94,31.84]
[1719261195052,7.9329,126.06,125.97,7.9379]
[1719261195251,7.9329,126.06,125.94,31.84]
[1719261195252,7.9318,126.08,125.98,19.8435]
[1719261195456,8.08399853,126.11,125.98,19.8435]
[1719261195760,7.9309,126.09,125.99,8.277]
[1719261196071,7.9314,126.08,125.99,0.17]
[1719261196380,16.01379853,126.11,126.02,7.9349]
[1719261196553,16.01379853,126.11,126.04,7.9337]
[1719261196554,8.08399853,126.11,126.04,7.9337]
[1719261196755,7.9255,126.18,126.08,7.9309]
[1719261196950,7.9253,126.18,126.09,9.50894667]
[1719261197174,7.9251,126.19,126.09,1.57824667]
[1719261197492,39.6075,126.24,126.08,0.34]
[1719261197775,31.84,126.26,126.08,0.34]
[1719261197776,7.9234,126.21,126.11,7.9293]
[1719261198077,39.6129,126.23,126.09,0.17]
[1719261198275,7.9238,126.21,126.09,0.17]
[1719261198460,19.8007,126.26,126.12,22.9144]
[1719261198653,19.8007,126.26,126.13,0.17]
[1719261199052,6.167,126.3,126.14,19.818]
[1719261199355,22.9144,126.29,126.15,0.34]
[1719261199556,19.7991,126.27,126.12,22.9144]
[1719261199759,19.7991,126.27,126.13,19.8196]
[1719261199961,7.9239,126.2,126.12,22.9144]
[1719261200160,7.9253,126.18,126.12,22.9144]
[1719261200369,39.5982,126.27,126.12,22.9144]
[1719261200573,31.84,126.28,126.12,22.9144]
[1719261200778,6.6604,126.35,126.17,7.9257]
[1719261200779,7.9195,126.27,126.17,7.9257]
[1719261200954,19.7914,126.32,126.18,0.17]
[1719261201156,7.9175,126.31,126.21,7.923]
[1719261201462,19.7937,126.31,126.18,0.17]
[1719261201663,7.92,126.27,126.18,0.17]
[1719261201978,19.7937,126.31,126.18,0.17]
[1719261202160,31.704698,126.34,126.2,19.8096]
[1719261202354,7.9157,126.34,126.24,7.9211]
[1719261202751,7.9164,126.32,126.23,15.2086]
[1719261202953,19.7821,126.38,126.24,0.17]
[1719261203180,19.7821,126.38,126.24,8.0913]
[1719261203372,7.9159,126.33,126.24,8.2613]
[1719261203572,19.7861,126.36,126.24,0.17]
[1719261203776,7.9164,126.32,126.23,15.0386]
[1719261203962,7.9169,126.32,126.24,0.17]
[1719261204283,7.9154,126.34,126.24,0.17]
[1719261204492,19.7804,126.39,126.24,0.34]
[1719261204655,39.5529,126.42,126.24,0.34]
[1719261204656,7.917,126.32,126.24,0.34]
[1719261204857,19.7843,126.37,126.24,0.34]
[1719261205057,39.5635,126.38,126.24,0.17]
[1719261205058,7.9179,126.3,126.24,0.17]
[1719261205267,7.9169,126.32,126.23,15.0386]
[1719261205472,19.7818,126.38,126.25,7.9207]
[1719261205675,7.9152,126.34,126.26,0.17]
[1719261205867,31.84,126.4,126.24,7.9213]
[1719261205868,31.84,126.4,126.25,0.17]
[1719261206156,31.84,126.4,126.25,8.0906]
[1719261206367,7.9144,126.36,126.26,7.9201]
[1719261206583,19.7813,126.39,126.25,0.17]
[1719261206883,7.9145,126.35,126.27,0.17]
[1719261207090,19.8021,126.41,126.27,0.17]
[1719261207091,27.713,126.41,126.31,19.7924]
[1719261207298,7.9114,126.4,126.31,19.7924]
[1719261207488,19.8021,126.41,126.28,19.797]
[1719261207782,7.9114,126.4,126.3,7.9176]
[1719261207961,19.7721,126.45,126.29,0.34]
[1719261208363,7.9107,126.41,126.31,7.917]
[1719261208586,7.9107,126.41,126.32,0.17]
[1719261208784,19.7721,126.45,126.32,8.2563]
[1719261208987,31.84,126.54,126.33,22.0102]
[1719261209171,31.84,126.54,126.38,7.9125]
[1719261209374,31.84,126.54,126.34,91.7539]
[1719261209678,31.84,126.58,126.41,19.7753]
[1719261209870,31.84,126.58,126.4,0.17]
[1719261210067,22.0102,126.56,126.4,0.17]
[1719261210286,7.9031,126.54,126.44,7.9083]
[1719261210478,22.0102,126.56,126.42,19.7752]
[1719261210479,7.9015,126.56,126.42,19.7752]
[1719261210675,6.2078,126.64,126.4,20.17]
[1719261210676,31.84,126.6,126.4,0.17]
[1719261210874,7.9047,126.51,126.4,0.17]
[1719261211076,59.2638,126.56,126.4,0.17]
[1719261211077,7.906,126.49,126.45,0.17]
[1719261211298,19.7583,126.53,126.45,0.17]
[1719261211694,71.3489,126.56,126.38,19.7815]
[1719261211867,7.9045,126.51,126.4,7.9113]
[1719261212072,19.7568,126.54,126.38,19.7815]
[1719261212475,19.7568,126.54,126.39,7.9116]
[1719261212790,7.9032,126.53,126.41,19.7766]
[1719261212999,19.7519,126.57,126.41,19.7766]
[1719261213179,7.9014,126.56,126.46,7.9075]
[1719261213491,51.5871,126.61,126.46,7.9075]
[1719261213492,7.9013,126.57,126.46,7.9075]
[1719261213690,19.7471,126.61,126.45,42.6037]
[1719261213870,7.9017,126.56,126.47,0.17]
[1719261214070,19.7503,126.58,126.47,0.17]
[1719261214368,19.7449,126.62,126.47,19.7673]
[1719261214892,31.84,126.59,126.45,22.6631]
[1719261215070,39.496,126.6,126.45,22.6631]
[1719261215273,7.9007,126.58,126.46,0.34]
[1719261215483,31.84,126.63,126.46,0.34]
[1719261215693,39.64318569,126.74,126.46,0.34]
[1719261215694,6.2432,126.71,126.48,19.7653]
[1719261215897,7.8964,126.64,126.53,7.9026]
[1719261216243,7.8964,126.64,126.49,20.34]
[1719261216244,39.4759,126.66,126.49,19.7637]
[1719261216500,7.8972,126.63,126.53,7.9032]
[1719261216677,7.8963,126.65,126.54,8.0725]
[1719261216882,7.8952,126.66,126.56,7.9013]
[1719261217104,7.8964,126.64,126.54,0.17]
[1719261217301,7.897,126.63,126.52,0.17]
[1719261217477,7.9002,126.58,126.5,0.17]
[1719261217869,7.9006,126.58,126.47,19.7663]
[1719261218071,19.7478,126.6,126.45,22.6631]
[1719261218277,19.7521,126.57,126.45,22.6631]
[1719261218577,7.9038,126.52,126.42,7.91]
[1719261218785,0.17,126.56,126.39,26.2981]
[1719261218971,7.9041,126.52,126.41,7.9105]
[1719261219299,45.17,126.56,126.39,26.2981]
[1719261219593,7.907,126.47,126.39,6.5195]
[1719261219972,19.757,126.54,126.39,6.5195]
[1719261219973,7.9048,126.51,126.39,6.5195]
[1719261220295,0.17,126.56,126.4,7.9107]
[1719261220594,7.9061,126.49,126.39,6.5195]
[1719261220892,7.9063,126.49,126.39,6.5195]
[1719261221075,7.9058,126.49,126.39,6.5195]
[1719261221274,19.7602,126.52,126.39,6.5195]
[1719261221477,0.17,126.51,126.39,6.5195]
[1719261221982,0.17,126.51,126.38,15.151]
[1719261221983,71.5344,126.51,126.38,15.151]
[1719261222201,0.17,126.51,126.38,15.151]
[1719261222883,7.904,126.52,126.42,7.91]
[1719261223079,39.5125,126.55,126.38,15.151]
[1719261223589,19.7597,126.52,126.38,15.151]
[1719261223788,19.7597,126.52,126.39,0.17]
[1719261223990,7.9059,126.49,126.39,20.1195]
[1719261224298,7.9049,126.51,126.41,7.9105]
[1719261224487,39.4998,126.59,126.4,1.83010523]
[1719261224685,7.9051,126.51,126.41,0.17]
[1719261224889,39.4998,126.59,126.4,1.83010523]
[1719261225095,39.5143,126.54,126.4,1.83010523]
[1719261225694,7.9081,126.46,126.41,1.82996045]
[1719261225901,7.907,126.47,126.41,1.82996045]
[1719261226076,19.7596,126.53,126.41,1.82996045]
[1719261226284,31.84,126.55,126.41,1.82996045]
[1719261226600,7.9065,126.48,126.41,1.82996045]
[1719261226814,39.5113,126.55,126.41,1.82996045]
[1719261226815,7.9081,126.46,126.41,1.82996045]
[1719261227107,39.5113,126.55,126.41,1.82996045]
[1719261227399,19.7566,126.54,126.41,1.82996045]
[1719261227601,7.9078,126.46,126.41,1.82996045]
[1719261227770,39.5238,126.51,126.41,1.82996045]
[1719261227978,19.7658,126.49,126.41,1.82996045]
[1719261228374,19.769,126.47,126.33,22.3443]
[1719261228581,7.9077,126.46,126.35,19.7856]
[1719261228882,71.3656,126.51,126.36,1.83068456]
[1719261229080,7.9107,126.42,126.36,1.83068456]
[1719261229279,7.9115,126.4,126.36,1.83068456]
[1719261229583,7.9095,126.43,126.36,1.83068456]
[1719261230182,7.9101,126.42,126.36,1.83068456]
[1719261230402,19.7654,126.49,126.36,1.83068456]
[1719261230605,45.17,126.48,126.36,1.83068456]
[1719261230780,7.911,126.41,126.36,1.83068456]
[1719261231715,7.9108,126.41,126.36,1.83068456]
[1719261231881,7.9107,126.41,126.36,1.83068456]
[1719261232088,7.9089,126.44,126.36,1.83068456]
[1719261232409,0.17,126.48,126.36,1.83068456]
[1719261232703,7.9109,126.41,126.36,1.83068456]
[1719261233003,7.9096,126.43,126.36,1.83068456]
[1719261233380,7.9103,126.42,126.36,1.83068456]
[1719261233588,7.9094,126.44,126.36,1.83068456]
[1719261233794,19.7674,126.48,126.36,1.83068456]
[1719261233990,7.9096,126.43,126.36,1.83068456]
[1719261234188,54.1843,126.5,126.36,1.83068456]
[1719261234600,54.1843,126.5,126.37,0.17]
[1719261234909,13.06216235,126.53,126.38,1.83039485]
[1719261235081,22.3443,126.52,126.38,1.83039485]
[1719261235508,30.0896,126.6,126.39,0.34]
[1719261235812,20.0,126.57,126.39,0.34]
[1719261235992,20.0,126.57,126.41,15.4578]
[1719261236209,6.29193052,126.6,126.42,20.17]
[1719261236500,31.84,126.59,126.43,0.17]
[1719261236891,37.92970752,126.6,126.43,0.17]
[1719261237108,6.2296,126.65,126.43,0.17]
[1719261237409,20.17,126.62,126.43,0.17]
[1719261237983,31.84,126.66,126.44,6.1536]
[1719261238193,31.84,126.66,126.45,20.34]
[1719261238698,55.7,126.66,126.45,20.34]
[1719261239010,31.84,126.66,126.45,20.34]
[1719261239214,31.84,126.66,126.46,16.6111]
[1719261239509,20.17,126.67,126.48,6.3078]
[1719261239815,20.17,126.67,126.49,20.34]
[1719261240115,20.17,126.67,126.49,0.34]
[1719261240295,31.84,126.63,126.48,6.3078]
[1719261240816,31.84,126.66,126.49,0.17]
[1719261241119,20.17,126.67,126.49,20.17]
[1719261241711,44.03,126.67,126.5,0.17]
[1719261242021,44.03,126.67,126.48,6.3078]
[1719261242022,31.84,126.64,126.48,6.3078]
[1719261242385,31.84,126.71,126.51,6.2117]
[1719261242688,55.7,126.71,126.52,20.0]
[1719261243008,31.84,126.67,126.51,6.2117]
[1719261243308,31.84,126.69,126.51,6.2117]
[1719261243613,23.86,126.64,126.51,6.2117]
[1719261243819,31.84,126.65,126.51,6.2117]
[1719261244003,31.84,126.62,126.51,6.2117]
[1719261244185,31.84,126.66,126.51,6.2117]
[1719261244498,31.84,126.62,126.51,6.2117]
[1719261244706,45.17,126.61,126.51,6.2117]
[1719261244884,31.610803,126.72,126.51,6.2117]
[1719261245089,31.84,126.7,126.51,6.2117]
[1719261245314,31.84,126.67,126.51,6.2117]
[1719261245606,63.450803,126.72,126.51,6.2117]
[1719261245786,63.450803,126.72,126.52,0.34]
[1719261245986,31.84,126.75,126.54,31.84]
[1719261246211,31.84,126.75,126.55,0.34]
[1719261246510,31.603375,126.76,126.58,31.84]
[1719261246710,31.84,126.78,126.59,42.8504]
[1719261247096,31.590532,126.8,126.59,42.8504]
[1719261247493,31.84,126.84,126.62,21.8852]
[1719261247717,31.84,126.84,126.63,0.17]
[1719261247890,63.42628,126.84,126.63,20.34]
[1719261248201,31.84,126.84,126.64,31.84]
[1719261248410,63.68,126.9,126.66,21.6951]
[1719261248592,63.68,126.9,126.68,53.5351]
[1719261248593,31.577715,126.86,126.68,53.5351]
[1719261248793,31.84,126.9,126.69,20.17]
[1719261249094,31.84,126.9,126.69,20.34]
[1719261249498,31.84,126.9,126.69,0.34]
[1719261249718,31.84,126.9,126.69,20.34]
[1719261250316,31.84,126.9,126.69,0.17]
[1719261250689,31.84,126.86,126.69,0.17]
[1719261251114,31.84,126.9,126.69,0.17]
[1719261251313,31.84,126.9,126.69,20.17]
[1719261251495,31.84,126.9,126.69,0.17]
[1719261251891,10.0,126.8,126.53,100.0]
[1719261252134,10.0,126.78,126.62,31.84]
[1719261252293,10.0,126.78,126.54,40.51731365]
[1719261252294,10.0,126.74,126.54,63.68]
[1719261252499,10.0,126.76,126.54,63.68]
[1719261252708,10.0,126.76,126.6,31.84]
[1719261253225,31.84,126.84,126.63,31.84]
[1719261253600,31.84,126.78,126.57,31.84]
[1719261254706,45.17,126.77,126.57,31.84]
[1719261255024,0.17,126.77,126.61,15.8566]
[1719261255316,31.84,126.84,126.61,15.8566]
[1719261255498,31.84,126.84,126.62,2.16692545]
[1719261255891,63.68,126.84,126.62,1.82692545]
[1719261256094,31.84,126.84,126.62,21.82692545]
[1719261256718,31.84,126.84,126.64,31.84]
[1719261256916,31.84,126.84,126.65,20.0]
[1719261257221,31.84,126.84,126.66,0.17]
[1719261257410,31.84,126.84,126.66,0.34]
[1719261258013,6.6246,126.88,126.66,0.34]
[1719261258222,47.3667,126.9,126.68,15.8566]
[1719261258512,79.2067,126.9,126.69,20.34]
[1719261258712,47.3667,126.9,126.69,20.34]
[1719261258945,47.3667,126.9,126.68,15.8566]
[1719261258946,31.84,126.84,126.68,15.8566]
[1719261259624,31.84,126.84,126.62,35.51171145]
[1719261259923,6.1839,126.83,126.62,3.93802545]
[1719261260301,45.0,126.82,126.62,3.93802545]
[1719261260493,0.17,126.81,126.62,3.93802545]
[1719261261216,0.17,126.81,126.62,23.93802545]
[1719261261443,0.17,126.81,126.63,0.17]
[1719261261609,6.1839,126.83,126.63,32.01]
[1719261261798,31.84,126.87,126.64,20.0]
[1719261261995,31.84,126.87,126.66,31.84]
[1719261262195,31.84,126.87,126.67,20.34]
[1719261263322,31.84,126.87,126.67,20.17]
[1719261263519,31.84,126.87,126.67,0.17]
[1719261263716,31.84,126.83,126.62,23.93802545]
[1719261263903,31.84,126.83,126.62,3.93802545]
[1719261264304,45.0,126.82,126.62,3.93802545]
[1719261264524,0.17,126.81,126.62,3.93802545]
[1719261265229,7.8858,126.81,126.72,7.8913]
[1719261265437,7.8858,126.81,126.71,27.6213]
[1719261265612,7.8876,126.79,126.69,7.8932]
[1719261265807,19.7169,126.8,126.7,0.17]
[1719261266022,19.7201,126.78,126.66,20.0]
[1719261266208,19.7201,126.78,126.65,19.7391]
[1719261266403,7.8895,126.75,126.66,7.8946]
[1719261266605,39.433,126.8,126.62,3.93802545]
[1719261266826,7.8887,126.77,126.67,7.8939]
[1719261267009,7.8886,126.77,126.68,7.8933]
[1719261267217,19.7151,126.81,126.63,1.82678118]
[1719261267438,7.8894,126.76,126.67,27.6292]
[1719261267731,7.8884,126.77,126.68,7.8937]
[1719261267939,7.8878,126.78,126.69,8.2331]